bitfinex-derivatives/quotes_BTCF0:USTF0_20241125
["timestamp","ask_amount","ask_price","bid_price","bid_amount"]
[1732512705536,0.050855,98206.0,98203.0,0.050856]
[1732512705835,0.3608,98215.0,98200.0,0.050857]
[1732512706144,0.050854,98207.0,98201.0,0.050857]
[1732512706437,0.00439479,98204.0,98203.0,7.636e-05]
[1732512709632,0.30987479,98204.0,98203.0,7.636e-05]
[1732512709831,0.30987479,98204.0,98185.0,0.54130717]
[1732512709832,0.51761479,98204.0,98185.0,0.54130717]
[1732512710137,0.050864,98187.0,98185.0,0.3608]
[1732512710323,0.3608,98196.0,98185.0,0.3608]
[1732512710324,0.3608,98196.0,98186.0,0.04646921]
[1732512711337,0.050863,98189.0,98186.0,0.04646921]
[1732512712133,0.050863,98189.0,98185.0,0.36089012]
[1732512712330,0.050863,98189.0,98185.0,0.41175512]
[1732512712639,0.0004,98186.0,98185.0,0.41175512]
[1732512713229,0.0004,98186.0,98185.0,0.55479512]
[1732512715230,0.0004,98186.0,98185.0,0.50393012]
[1732512715440,0.0004,98186.0,98185.0,0.36089012]
[1732512715640,0.0004,98186.0,98185.0,0.50393012]
[1732512716037,0.0004,98186.0,98185.0,0.36089012]
[1732512721638,0.083454,98208.0,98185.0,0.36089012]
[1732512721942,0.0326,98208.0,98207.0,0.0004]
[1732512722455,0.050849,98217.0,98207.0,0.14348]
[1732512722739,0.42475868,98229.0,98207.0,0.14348]
[1732512722740,1.5,98227.0,98212.0,0.050851]
[1732512722936,1.5,98227.0,98216.0,0.0004]
[1732512723133,0.050843,98227.0,98226.0,0.0004]
[1732512725145,0.59047383,98227.0,98226.0,0.0004]
[1732512725442,0.499323,98227.0,98226.0,0.0004]
[1732512725643,0.62131457,98227.0,98226.0,0.0004]
[1732512725845,0.499323,98227.0,98226.0,0.0004]
[1732512727050,1.999323,98227.0,98226.0,0.0004]
[1732512727349,2.12131457,98227.0,98226.0,0.0004]
[1732512727936,1.999323,98227.0,98226.0,0.0004]
[1732512728145,2.12131457,98227.0,98226.0,0.0004]
[1732512728344,2.1208144,98227.0,98226.0,0.0004]
[1732512728650,1.999323,98227.0,98226.0,0.0004]
[1732512729036,1.856243,98227.0,98226.0,0.0004]
[1732512729349,1.999323,98227.0,98226.0,0.0004]
[1732512729551,1.856243,98227.0,98226.0,0.0004]
[1732512729750,1.999323,98227.0,98226.0,0.0004]
[1732512730238,2.1208144,98227.0,98226.0,0.0004]
[1732512730445,1.999323,98227.0,98226.0,0.0004]
[1732512730942,1.86591769,98227.0,98226.0,0.0004]
[1732512731141,2.00899769,98227.0,98226.0,0.0004]
[1732512731455,0.48749008,98227.0,98226.0,0.0004]
[1732512731749,0.50899769,98227.0,98226.0,0.0004]
[1732512733553,0.63057008,98227.0,98226.0,0.0004]
[1732512734139,0.36591769,98227.0,98226.0,0.0004]
[1732512734348,0.50867769,98227.0,98226.0,0.0004]
[1732512734846,0.50896175,98227.0,98226.0,0.0004]
[1732512735947,0.52510592,98227.0,98226.0,0.0004]
[1732512736445,0.1986168,98227.0,98226.0,0.0004]
[1732512736650,0.07694592,98227.0,98226.0,0.0004]
[1732512737854,0.06080175,98227.0,98226.0,0.0004]
[1732512738962,0.07693552,98227.0,98226.0,0.0004]
[1732512739858,0.36620175,98227.0,98226.0,0.0004]
[1732512740657,0.50896175,98227.0,98226.0,0.0004]
[1732512741257,0.66103002,98227.0,98226.0,0.0004]
[1732512741557,0.50896175,98227.0,98226.0,0.0004]
[1732512741965,0.57493506,98227.0,98204.0,0.3608]
[1732512742264,0.050853,98209.0,98207.0,0.050854]
[1732512742446,0.02647398,98208.0,98207.0,0.050854]
[1732512743049,0.0101823,98208.0,98207.0,0.050854]
[1732512744249,0.050855,98205.0,98204.0,0.3608]
[1732512744448,0.0610373,98205.0,98204.0,0.3608]
[1732512745452,0.0610373,98205.0,98204.0,0.54130717]
[1732512745663,0.0610373,98205.0,98204.0,0.3608]
[1732512745863,0.0610373,98205.0,98204.0,0.54162399]
[1732512746059,0.0101823,98205.0,98204.0,0.54162399]
[1732512746251,0.0101823,98205.0,98204.0,0.3608]
[1732512747662,0.0101823,98205.0,98204.0,0.60143147]
[1732512747857,0.0101823,98205.0,98204.0,0.3608]
[1732512748159,0.02635321,98205.0,98204.0,0.3608]
[1732512748655,0.09125244,98215.0,98212.0,0.050851]
[1732512748853,0.050849,98216.0,98212.0,0.050851]
[1732512749162,0.14210144,98216.0,98214.0,0.0004]
[1732512749658,0.09125244,98215.0,98214.0,0.0004]
[1732512749861,0.050849,98216.0,98214.0,0.0004]
[1732512750262,0.050849,98216.0,98215.0,0.0004]
[1732512751562,0.17251892,98216.0,98215.0,0.0004]
[1732512751765,0.1520874,98222.0,98215.0,0.0004]
[1732512751959,0.1520874,98222.0,98216.0,0.1810697]
[1732512752164,0.1520874,98222.0,98214.0,0.0004]
[1732512752165,0.1520874,98221.0,98217.0,0.033]
[1732512752361,0.1520874,98222.0,98217.0,0.033]
[1732512754865,0.1520874,98221.0,98217.0,0.033]
[1732512755169,0.1520874,98221.0,98218.0,0.050848]
[1732512755359,0.1520874,98221.0,98219.0,0.050847]
[1732512755558,0.1520874,98222.0,98217.0,0.033]
[1732512755763,0.1520874,98222.0,98217.0,0.2140697]
[1732512755955,0.1520874,98222.0,98221.0,0.0004]
[1732512756360,0.1520874,98223.0,98221.0,0.0004]
[1732512756555,0.1520874,98224.0,98221.0,0.0004]
[1732512756774,0.18304156,98228.0,98222.0,0.3612]
[1732512756967,0.15218689,98231.0,98224.0,0.1810697]
[1732512757268,0.15218689,98231.0,98222.0,0.3608]
[1732512757269,9.949e-05,98231.0,98230.0,0.051242]
[1732512759376,9.949e-05,98231.0,98230.0,0.412042]
[1732512759562,0.12189434,98236.0,98235.0,0.050839]
[1732512759760,0.12189434,98256.0,98235.0,0.3608]
[1732512760071,0.12189434,98267.0,98255.0,0.3612]
[1732512760259,0.0316,98269.0,98255.0,0.3612]
[1732512760260,0.15349434,98269.0,98259.0,0.050827]
[1732512760459,0.15349434,98269.0,98266.0,0.0004]
[1732512760460,0.050823,98267.0,98266.0,0.0004]
[1732512760763,0.07719477,98267.0,98261.0,0.050826]
[1732512760966,0.01011012,98266.0,98261.0,0.050826]
[1732512761266,0.0262859,98265.0,98262.0,0.050825]
[1732512761469,0.0262859,98264.0,98262.0,0.050825]
[1732512761667,8.587e-05,98267.0,98262.0,0.050825]
[1732512761668,0.0262859,98263.0,98262.0,0.050825]
[1732512764366,0.0262859,98263.0,98260.0,0.00011242]
[1732512764367,0.02020807,98263.0,98260.0,0.00011242]
[1732512764675,0.0004,98261.0,98260.0,0.00011242]
[1732512765165,0.01655672,98261.0,98260.0,0.00011242]
[1732512765367,0.02665467,98261.0,98260.0,0.00011242]
[1732512766175,0.01049795,98261.0,98260.0,0.00011242]
[1732512767668,0.01042438,98261.0,98260.0,0.00011242]
[1732512775178,0.01013839,98261.0,98260.0,0.00011242]
[1732512775475,0.01013869,98261.0,98260.0,0.00011242]
[1732512775677,0.72708469,98261.0,98260.0,0.00011242]
[1732512775872,0.72708469,98261.0,98255.0,0.0004]
[1732512776068,0.00973869,98260.0,98255.0,0.0004]
[1732512776267,0.0004,98256.0,98255.0,0.0004]
[1732512776472,0.17032265,98256.0,98255.0,0.0004]
[1732512776974,0.17951016,98256.0,98255.0,0.051229]
[1732512778176,0.03603016,98256.0,98255.0,0.051229]
[1732512778980,0.03669621,98256.0,98255.0,0.051229]
[1732512779681,0.0275087,98256.0,98255.0,0.051229]
[1732512779887,0.0275087,98256.0,98255.0,0.0283431]
[1732512780883,0.03669583,98256.0,98255.0,0.0283431]
[1732512781686,0.03641881,98256.0,98255.0,0.0283431]
[1732512781882,0.02723168,98256.0,98255.0,0.0283431]
[1732512785778,0.0004,98256.0,98255.0,0.0283431]
[1732512785978,0.01064074,98256.0,98255.0,0.0283431]
[1732512786481,0.02702593,98256.0,98255.0,0.0283431]
[1732512787379,0.0004,98256.0,98255.0,0.0283431]
[1732512787587,0.01040536,98256.0,98255.0,0.0283431]
[1732512790075,0.01040536,98256.0,98255.0,0.26914736]
[1732512790281,0.02653392,98256.0,98255.0,0.26914736]
[1732512791578,0.02653392,98256.0,98255.0,0.0283431]
[1732512792183,0.02563202,98256.0,98255.0,0.96433534]
[1732512792595,0.00950346,98256.0,98255.0,0.96433534]
[1732512792983,8.587e-05,98267.0,98255.0,0.96433534]
[1732512793181,8.587e-05,98267.0,98266.0,0.411623]
[1732512793380,8.587e-05,98267.0,98266.0,0.555463]
[1732512793381,0.01645574,98267.0,98266.0,0.555463]
[1732512794882,0.02565736,98267.0,98266.0,0.555463]
[1732512796884,0.02565736,98267.0,98266.0,0.412023]
[1732512797090,0.02565736,98267.0,98266.0,0.553183]
[1732512797091,8.587e-05,98267.0,98266.0,0.553183]
[1732512797391,0.0092986,98267.0,98266.0,0.553183]
[1732512797780,0.02586695,98267.0,98266.0,0.58495368]
[1732512797988,0.01665422,98267.0,98266.0,0.58495368]
[1732512798683,0.01665422,98267.0,98266.0,0.89023368]
[1732512799079,0.01665422,98267.0,98266.0,1.07036099]
[1732512799798,0.01665422,98267.0,98266.0,0.89023368]
[1732512800183,0.01665422,98267.0,98266.0,1.07031237]
[1732512800492,0.01616153,98267.0,98266.0,1.07031237]
[1732512801496,8.587e-05,98267.0,98266.0,0.89023368]
[1732512804400,0.00968234,98267.0,98266.0,0.89023368]
[1732512804897,0.00968234,98267.0,98266.0,1.13080583]
[1732512805096,0.00968234,98267.0,98266.0,1.07021508]
[1732512805487,8.587e-05,98267.0,98266.0,1.07021508]
[1732512806297,8.587e-05,98267.0,98266.0,1.09055084]
[1732512806485,8.587e-05,98267.0,98266.0,0.91056944]
[1732512807801,0.00972614,98267.0,98266.0,0.91056944]
[1732512808191,8.587e-05,98267.0,98266.0,0.91056944]
[1732512808395,0.00972595,98267.0,98266.0,0.91056944]
[1732512809095,0.00972595,98267.0,98266.0,0.76940944]
[1732512809492,0.00972595,98267.0,98266.0,0.91052944]
[1732512809694,0.00972595,98267.0,98266.0,0.46412944]
[1732512809895,0.00972595,98267.0,98266.0,0.60524944]
[1732512810095,0.01005694,98267.0,98266.0,0.60524944]
[1732512810801,0.01005694,98267.0,98266.0,0.46412944]
[1732512811102,0.01005694,98267.0,98266.0,0.91052944]
[1732512811497,0.01005694,98267.0,98266.0,0.60524944]
[1732512811906,0.01020812,98267.0,98266.0,0.60524944]
[1732512812398,0.01020812,98267.0,98266.0,0.46412944]
[1732512812602,0.01020812,98267.0,98266.0,0.76498187]
[1732512812904,0.01020812,98267.0,98266.0,0.58491368]
[1732512815496,8.587e-05,98267.0,98266.0,0.58491368]
[1732512815694,0.01004281,98267.0,98266.0,0.58491368]
[1732512816204,0.03508098,98267.0,98266.0,0.58491368]
[1732512817110,0.03508098,98267.0,98266.0,0.68410866]
[1732512817495,0.03508098,98267.0,98266.0,0.44379368]
[1732512817708,0.05122328,98267.0,98266.0,0.39297068]
[1732512818107,0.05122328,98267.0,98266.0,0.63328566]
[1732512819110,0.05122328,98267.0,98266.0,0.39297068]
[1732512819411,0.03550319,98267.0,98266.0,0.39297068]
[1732512819608,0.05166382,98267.0,98266.0,0.39297068]
[1732512821705,0.05166382,98267.0,98266.0,0.3612]
[1732512822904,0.05301024,98267.0,98266.0,0.3612]
[1732512823309,0.02540902,98267.0,98266.0,0.3612]
[1732512823614,0.0688779,98267.0,98266.0,0.3612]
[1732512825514,0.05300987,98267.0,98266.0,0.3612]
[1732512825911,0.10383287,98267.0,98266.0,0.24117888]
[1732512826215,0.10383287,98267.0,98245.0,0.3608]
[1732512826216,0.05300987,98267.0,98261.0,0.23142465]
[1732512826409,0.084024,98266.0,98260.0,0.18059865]
[1732512826724,0.050825,98263.0,98262.0,0.18059865]
[1732512826914,0.10338853,98263.0,98262.0,0.18059865]
[1732512827213,0.10338853,98263.0,98261.0,0.18059865]
[1732512827417,0.05256353,98262.0,98260.0,0.050826]
[1732512827620,0.05256353,98261.0,98260.0,0.050826]
[1732512829525,0.05256353,98261.0,98260.0,0.23142465]
[1732512830413,0.05239529,98261.0,98260.0,0.23142465]
[1732512830614,0.0633362,98261.0,98260.0,0.23142465]
[1732512831121,0.05292355,98261.0,98260.0,0.23142465]
[1732512832624,0.05292355,98261.0,98260.0,0.050826]
[1732512834024,0.0008,98262.0,98260.0,0.050826]
[1732512834231,0.05357681,98261.0,98260.0,0.050826]
[1732512834724,0.02692462,98261.0,98260.0,0.190306]
[1732512834920,0.05357322,98261.0,98260.0,0.190306]
[1732512835223,0.05357322,98261.0,98260.0,0.43108488]
[1732512835530,0.05357322,98261.0,98260.0,0.190306]
[1732512837830,0.05301546,98261.0,98260.0,0.190306]
[1732512840123,0.05301546,98261.0,98260.0,0.45830877]
[1732512840924,0.02636686,98261.0,98260.0,0.45830877]
[1732512841133,0.05272091,98261.0,98260.0,0.45830877]
[1732512841324,0.06311694,98261.0,98260.0,0.45830877]
[1732512841526,0.03649515,98261.0,98260.0,0.45830877]
[1732512841726,0.05297589,98261.0,98260.0,0.45830877]
[1732512842429,0.05297589,98261.0,98260.0,0.190306]
[1732512844825,0.05297589,98261.0,98260.0,0.050826]
[1732512845025,0.05297589,98261.0,98260.0,0.43106718]
[1732512845230,0.05297589,98261.0,98260.0,0.190306]
[1732512845934,0.05297589,98261.0,98260.0,0.29158718]
[1732512846137,0.05297589,98261.0,98260.0,0.43106718]
[1732512846328,0.05297589,98261.0,98260.0,0.190306]
[1732512846731,0.05297589,98261.0,98260.0,0.43106718]
[1732512847329,0.05297589,98261.0,98260.0,0.190306]
[1732512847524,0.05287314,98261.0,98260.0,0.190306]
[1732512847731,0.05287309,98261.0,98260.0,0.190306]
[1732512848232,0.03655368,98261.0,98260.0,0.190306]
[1732512849534,0.01621788,98261.0,98260.0,0.190306]
[1732512849835,0.06704388,98261.0,98260.0,0.13948]
[1732512850039,0.050827,98258.0,98257.0,0.3608]
[1732512850540,0.051627,98258.0,98257.0,0.3608]
[1732512850738,0.051627,98258.0,98257.0,0.60164527]
[1732512850942,0.051627,98258.0,98257.0,0.3608]
[1732512851440,0.6933276,98258.0,98255.0,0.24084527]
[1732512851629,0.050832,98250.0,98249.0,0.18065259]
[1732512851832,0.3872076,98250.0,98246.0,0.18065259]
[1732512852030,0.050834,98245.0,98244.0,0.18073478]
[1732512852230,0.0772416,98245.0,98244.0,8.219e-05]
[1732512852438,0.0780416,98245.0,98244.0,8.219e-05]
[1732512852736,0.06179077,98245.0,98244.0,8.219e-05]
[1732512852936,0.36715077,98245.0,98244.0,8.219e-05]
[1732512855543,0.50655077,98245.0,98244.0,8.219e-05]
[1732512855739,0.51626634,98245.0,98244.0,8.219e-05]
[1732512856246,0.54835921,98245.0,98244.0,8.219e-05]
[1732512856641,0.53864364,98245.0,98244.0,8.219e-05]
[1732512857440,0.23328364,98245.0,98244.0,8.219e-05]
[1732512859046,0.2328246,98245.0,98244.0,8.219e-05]
[1732512859240,0.0934246,98245.0,98244.0,8.219e-05]
[1732512859845,0.0934246,98245.0,98228.0,0.3608]
[1732512859846,0.050842,98229.0,98228.0,0.3608]
[1732512860144,0.06133973,98229.0,98228.0,0.3608]
[1732512861641,0.07092444,98229.0,98228.0,0.3608]
[1732512862641,0.06138891,98229.0,98228.0,0.3608]
[1732512864542,0.06138891,98229.0,98227.0,8.008e-05]
[1732512864743,0.38014131,98228.0,98227.0,8.008e-05]
[1732512864938,0.38094131,98228.0,98227.0,8.008e-05]
[1732512865146,0.37134691,98228.0,98227.0,8.008e-05]
[1732512865444,0.38094073,98228.0,98227.0,8.008e-05]
[1732512865655,0.37134691,98228.0,98227.0,8.008e-05]
[1732512866450,0.01054691,98228.0,98227.0,8.008e-05]
[1732512868648,0.02013601,98228.0,98227.0,8.008e-05]
[1732512869740,0.01054691,98228.0,98227.0,8.008e-05]
[1732512870448,0.01053235,98228.0,98227.0,8.008e-05]
[1732512870649,0.020082,98228.0,98227.0,8.008e-05]
[1732512871751,0.01053235,98228.0,98227.0,8.008e-05]
[1732512872654,0.01053235,98228.0,98227.0,0.17082008]
[1732512872846,0.0008,98228.0,98227.0,0.20182008]
[1732512873553,0.0008,98228.0,98227.0,0.56262008]
[1732512874339,0.01053235,98228.0,98227.0,0.56262008]
[1732512875459,0.01053235,98228.0,98227.0,0.20182008]
[1732512875660,0.02016283,98228.0,98227.0,0.20182008]
[1732512878056,0.02986726,98228.0,98227.0,0.20182008]
[1732512878458,0.02023678,98228.0,98227.0,0.20182008]
[1732512881252,0.02023678,98228.0,98227.0,0.03138008]
[1732512881450,0.11154035,98228.0,98227.0,0.03138008]
[1732512881654,0.11154035,98228.0,98227.0,8.008e-05]
[1732512882165,0.02023678,98228.0,98227.0,8.008e-05]
[1732512882657,0.02023678,98228.0,98227.0,0.36088008]
[1732512882848,0.02023678,98228.0,98227.0,0.66160544]
[1732512883250,0.02023678,98228.0,98227.0,0.93481983]
[1732512883867,0.02023678,98228.0,98227.0,0.66160544]
[1732512884154,0.02023678,98228.0,98227.0,0.36088008]
[1732512886465,0.02023678,98228.0,98227.0,0.41172308]
[1732512887157,0.02023678,98228.0,98227.0,0.36088008]
[1732512887354,0.07107978,98228.0,98227.0,0.36088008]
[1732512888858,0.02048015,98228.0,98227.0,0.36088008]
[1732512889049,0.02048015,98228.0,98227.0,0.41172308]
[1732512889250,0.01077647,98228.0,98227.0,0.41172308]
[1732512889654,0.07148856,98228.0,98227.0,0.36088008]
[1732512892672,0.0713957,98228.0,98227.0,0.36088008]
[1732512892859,0.06161947,98228.0,98227.0,0.36088008]
[1732512893566,0.15306795,98228.0,98227.0,0.60196212]
[1732512893754,0.15306795,98228.0,98209.0,0.72265787]
[1732512893755,0.3054,98227.0,98215.0,0.1806788]
[1732512893958,0.050852,98210.0,98209.0,0.36144]
[1732512894155,0.15229365,98210.0,98209.0,0.36144]
[1732512894359,0.06162847,98210.0,98209.0,0.36144]
[1732512894755,0.051652,98210.0,98209.0,0.36144]
[1732512895264,0.14304421,98210.0,98209.0,0.3608]
[1732512895458,0.051652,98210.0,98209.0,0.3608]
[1732512896271,0.09216809,98210.0,98209.0,0.3608]
[1732512896466,0.0008,98210.0,98209.0,0.3608]
[1732512900367,0.0008,98210.0,98208.0,0.050853]
[1732512900571,0.0008,98210.0,98209.0,0.3608]
[1732512900764,0.05085,98215.0,98206.0,0.13944]
[1732512901069,0.050855,98205.0,98204.0,0.032]
[1732512901270,0.050855,98205.0,98187.0,0.30072536]
[1732512901271,0.41176977,98205.0,98187.0,0.38052204]
[1732512901471,0.41176977,98205.0,98191.0,0.050862]
[1732512901472,0.0326,98204.0,98191.0,0.050862]
[1732512901660,0.0326,98204.0,98193.0,0.050861]
[1732512901859,0.0326,98204.0,98187.0,0.13944]
[1732512902060,0.0326,98204.0,98186.0,0.53161229]
[1732512902369,0.05176977,98205.0,98203.0,0.05093342]
[1732512902868,0.05176977,98205.0,98204.0,0.0004]
[1732512904674,0.41256977,98205.0,98204.0,0.0004]
[1732512905265,0.55200977,98205.0,98204.0,0.0004]
[1732512905968,0.85748977,98205.0,98204.0,0.0004]
[1732512906168,0.050863,98189.0,98188.0,0.050863]
[1732512906576,0.052063,98189.0,98188.0,0.050863]
[1732512908264,0.050865,98186.0,98185.0,0.00011378]
[1732512908465,0.0012,98189.0,98188.0,0.050864]
[1732512908769,0.3608,98197.0,98195.0,0.05086]
[1732512908975,0.3608,98197.0,98188.0,0.0004]
[1732512908976,0.050857,98202.0,98201.0,0.050856]
[1732512909173,0.03284314,98205.0,98204.0,0.050855]
[1732512909373,0.00091477,98205.0,98204.0,0.050855]
[1732512909672,0.00091477,98205.0,98204.0,0.051255]
[1732512911375,0.00091477,98205.0,98204.0,0.412055]
[1732512911763,0.0104534,98205.0,98204.0,0.412055]
[1732512911965,0.00011492,98205.0,98204.0,0.412055]
[1732512912467,0.00011492,98205.0,98204.0,0.791824]
[1732512912667,0.00011492,98205.0,98204.0,0.551495]
[1732512913969,0.0096369,98205.0,98204.0,0.551495]
[1732512914177,0.0096369,98205.0,98204.0,0.79196617]
[1732512914377,0.0096369,98205.0,98204.0,0.551495]
[1732512915766,0.00011492,98205.0,98204.0,0.551495]
[1732512920174,0.00011492,98205.0,98204.0,0.412055]
[1732512920376,0.00011492,98205.0,98204.0,0.551415]
[1732512921777,0.00011492,98205.0,98204.0,0.412055]
[1732512923183,0.00011492,98205.0,98204.0,0.3612]
[1732512923875,0.00011492,98205.0,98204.0,0.412055]
[1732512928275,0.00011492,98205.0,98204.0,0.65299237]
[1732512928478,0.00011492,98205.0,98204.0,0.412055]
[1732512929382,0.00011492,98205.0,98204.0,0.551415]
[1732512929883,0.00011492,98205.0,98204.0,0.85200546]
[1732512930283,0.00011492,98205.0,98204.0,0.551415]
[1732512930785,0.00011492,98205.0,98204.0,1.43630508]
[1732512930984,0.00011492,98205.0,98204.0,1.13571462]
[1732512932085,0.00011492,98205.0,98204.0,0.856895]
[1732512933791,0.00011492,98205.0,98204.0,0.551415]
[1732512934181,0.00011492,98205.0,98204.0,0.79229544]
[1732512934491,0.05096992,98205.0,98204.0,0.3612]
[1732512935181,0.00011492,98205.0,98204.0,0.3612]
[1732512939591,0.00011492,98205.0,98204.0,0.60210505]
[1732512939988,0.00011492,98205.0,98204.0,0.3612]
[1732512941795,0.00011492,98205.0,98204.0,0.63763871]
[1732512943085,0.00011492,98205.0,98204.0,0.93736152]
[1732512943593,0.00011492,98205.0,98204.0,0.93736958]
[1732512943795,0.00011492,98205.0,98204.0,0.63558724]
[1732512944700,0.00011492,98205.0,98204.0,0.6630046]
[1732512945195,0.00011492,98205.0,98204.0,0.3612]
[1732512950891,0.00011492,98205.0,98204.0,0.60268608]
[1732512951091,0.00011492,98205.0,98204.0,0.3612]
[1732512951398,0.09158239,98205.0,98204.0,0.3612]
[1732512952401,0.00011492,98205.0,98204.0,0.3612]
[1732512953100,0.09157852,98205.0,98204.0,0.3612]
[1732512953396,0.00011492,98205.0,98204.0,0.3612]
[1732512953799,0.09157852,98205.0,98204.0,0.3612]
[1732512954296,0.00011492,98205.0,98204.0,0.3612]
[1732512961604,0.05096992,98205.0,98204.0,0.3612]
[1732512962297,0.050855,98205.0,98204.0,0.3612]
[1732512963704,0.050855,98205.0,98204.0,0.0004]
[1732512964202,0.17280955,98205.0,98204.0,0.0004]
[1732512964409,0.17280955,98205.0,98189.0,0.24148566]
[1732512964410,0.35494828,98205.0,98189.0,0.24148566]
[1732512964702,0.050864,98187.0,98185.0,0.00011378]
[1732512965206,0.00091492,98186.0,98185.0,0.00011378]
[1732512967004,0.01045972,98186.0,98185.0,0.00011378]
[1732512968810,0.01044542,98186.0,98185.0,0.00011378]
[1732512970198,0.43772948,98186.0,98185.0,7.8e-07]
[1732512970505,0.64739513,98186.0,98185.0,7.8e-07]
[1732512971210,1.1698907,98186.0,98185.0,7.8e-07]
[1732512971409,1.1698907,98186.0,98152.0,0.3608]
[1732512971410,0.050882,98153.0,98152.0,0.3608]
[1732512971601,0.07029122,98153.0,98152.0,0.3608]
[1732512971803,0.07120614,98153.0,98152.0,0.3608]
[1732512972305,0.07120614,98153.0,98152.0,0.36087953]
[1732512973408,0.06159802,98153.0,98152.0,0.36087953]
[1732512975414,0.01071602,98153.0,98152.0,0.36087953]
[1732512976308,0.01058548,98153.0,98152.0,0.36087953]
[1732512976515,0.00091492,98153.0,98152.0,0.36087953]
[1732512976912,0.00091492,98153.0,98152.0,0.50015953]
[1732512977510,0.01058548,98153.0,98152.0,0.50015953]
[1732512980107,0.01058548,98153.0,98152.0,0.13935953]
[1732512981107,0.01058548,98153.0,98152.0,7.953e-05]
[1732512981519,0.02017907,98153.0,98152.0,7.953e-05]
[1732512982413,0.01068858,98153.0,98152.0,7.953e-05]
[1732512982713,0.01068858,98153.0,98152.0,5.3e-07]
[1732512983422,1.81632858,98153.0,98152.0,5.3e-07]
[1732512983811,2.11632858,98153.0,98152.0,5.3e-07]
[1732512984214,2.11632858,98153.0,98116.0,0.0331]
[1732512984418,0.0509,98117.0,98116.0,0.0331]
[1732512984719,0.06148548,98117.0,98116.0,0.0331]
[1732512985215,0.05181492,98117.0,98116.0,0.03322982]
[1732512986115,0.06140292,98117.0,98116.0,0.03322982]
[1732512987211,0.42220292,98117.0,98116.0,0.03322982]
[1732512987513,0.43178914,98117.0,98116.0,0.03322982]
[1732512987716,0.43178914,98117.0,98100.0,0.1]
[1732512987717,0.050908,98102.0,98100.0,0.1]
[1732512987914,0.01929511,98101.0,98100.0,0.1]
[1732512988625,0.38101003,98101.0,98100.0,0.1]
[1732512989318,0.050911,98096.0,98095.0,9.24e-05]
[1732512989623,0.050911,98096.0,98085.0,0.0316]
[1732512989624,0.050917,98086.0,98085.0,0.0316]
[1732512989813,0.43101211,98086.0,98085.0,0.0316]
[1732512990018,0.050922,98075.0,98074.0,0.13932]
[1732512990213,0.07021711,98075.0,98074.0,0.13932]
[1732512990417,0.00970889,98075.0,98074.0,0.4452]
[1732512990717,0.00012951,98097.0,98075.0,0.30588]
[1732512990922,0.00012951,98097.0,98088.0,0.3608]
[1732512991113,0.05104051,98097.0,98096.0,0.0004]
[1732512993416,0.05104051,98097.0,98096.0,7.88e-06]
[1732512993917,0.05104051,98097.0,98077.0,0.34480788]
[1732512993918,0.05092,98079.0,98077.0,0.34480788]
[1732512994319,0.00012951,98097.0,98077.0,0.34480788]
[1732512994526,0.0004,98078.0,98077.0,0.34480788]
[1732512994712,0.0004,98078.0,98077.0,0.79004788]
[1732512995719,0.0004,98078.0,98077.0,1.01148788]
[1732512995928,0.0004,98078.0,98077.0,1.15084788]
[1732512999829,0.0004,98078.0,98077.0,0.44524]
[1732513000133,0.050922,98075.0,98072.0,0.0314]
[1732513000317,0.050922,98075.0,98074.0,0.13948319]
[1732513000626,0.051322,98075.0,98074.0,0.13948319]
[1732513000825,0.0004,98075.0,98074.0,0.50028319]
[1732513001020,0.0004,98075.0,98074.0,0.36092319]
[1732513001229,0.0004,98075.0,98074.0,0.50028319]
[1732513002318,0.0004,98075.0,98074.0,0.80616319]
[1732513003320,0.00991755,98075.0,98074.0,0.80616319]
[1732513003527,0.01012518,98075.0,98074.0,0.80616319]
[1732513004025,0.0004,98075.0,98074.0,0.80616319]
[1732513004229,0.00963893,98083.0,98074.0,0.50028319]
[1732513004432,0.050916,98088.0,98082.0,0.3608]
[1732513004725,0.050916,98088.0,98083.0,0.1394]
[1732513005828,0.00012951,98097.0,98083.0,0.1394]
[1732513006425,0.050912,98096.0,98083.0,0.1394]
[1732513006728,0.050915,98090.0,98083.0,0.1394]
[1732513006927,0.00012951,98097.0,98083.0,0.1394]
[1732513006928,0.050915,98089.0,98083.0,0.1394]
[1732513007526,0.00954794,98088.0,98083.0,0.1394]
[1732513007729,0.00954794,98087.0,98084.0,0.14516]
[1732513007927,0.00954794,98086.0,98084.0,0.14516]
[1732513008125,0.00954794,98085.0,98084.0,0.14516]
[1732513008537,0.050915,98089.0,98084.0,0.14516]
[1732513009129,0.00012951,98097.0,98084.0,0.14516]
[1732513009329,0.050917,98086.0,98074.0,0.36092319]
[1732513009628,0.050922,98076.0,98075.0,0.14516]
[1732513010831,0.050922,98076.0,98074.0,0.00012319]
[1732513011031,0.050922,98076.0,98075.0,0.14516]
[1732513012442,0.050922,98076.0,98074.0,0.00012319]
[1732513012639,0.050922,98076.0,98074.0,0.14528319]
[1732513012841,0.0004,98075.0,98074.0,0.14528319]
[1732513013838,0.0099899,98075.0,98074.0,0.14528319]
[1732513014645,0.0004,98075.0,98074.0,0.14528319]
[1732513016148,0.00998448,98075.0,98074.0,0.14528319]
[1732513016544,0.0004,98075.0,98074.0,0.14528319]
[1732513016734,0.00998839,98075.0,98074.0,0.14528319]
[1732513020240,0.01003115,98075.0,98074.0,0.14528319]
[1732513020652,0.01003113,98075.0,98074.0,0.14528319]
[1732513021354,0.01003113,98075.0,98074.0,0.00012319]
[1732513021849,0.01003113,98075.0,98074.0,0.14528319]
[1732513022353,0.01003113,98075.0,98074.0,0.00012319]
[1732513022354,0.0004,98075.0,98074.0,0.00012319]
[1732513022559,0.0004,98075.0,98074.0,0.14528319]
[1732513022853,0.12246816,98075.0,98074.0,0.14528319]
[1732513023052,0.0004,98075.0,98074.0,0.14528319]
[1732513023247,0.0004,98075.0,98074.0,0.45116319]
[1732513023248,0.09195139,98075.0,98074.0,0.45116319]
[1732513023458,0.0004,98075.0,98074.0,0.45116319]
[1732513023656,0.09195139,98075.0,98074.0,0.45116319]
[1732513024150,0.09195139,98075.0,98074.0,0.48296319]
[1732513024151,0.0004,98075.0,98074.0,0.48296319]
[1732513024452,0.09155139,98086.0,98074.0,0.78296319]
[1732513024752,0.082308,98103.0,98085.0,0.3608]
[1732513024753,0.09153831,98089.0,98085.0,0.3608]
[1732513024944,0.17298316,98090.0,98085.0,0.3608]
[1732513025140,0.12206816,98088.0,98082.0,0.11041838]
[1732513025351,0.0314,98103.0,98074.0,0.27413733]
[1732513025352,0.050921,98078.0,98074.0,0.27413733]
[1732513025554,0.050922,98077.0,98075.0,0.14516]
[1732513025747,0.0004,98083.0,98074.0,0.06420099]
[1732513025748,0.050922,98075.0,98074.0,0.06420099]